bitfinex-derivatives/quotes_SOLF0:USTF0_20250624
["timestamp","ask_amount","ask_price","bid_price","bid_amount"]
[1750743333953,5.09851648,144.71,144.65,5.72479384]
[1750743334259,5.09851648,144.7,144.65,5.72479384]
[1750743334452,5.09851648,144.69,144.65,5.72479384]
[1750743334652,5.1195467,144.68,144.63,42.60479384]
[1750743334852,36.88,144.69,144.61,4.7014]
[1750743335151,10.17827709,144.68,144.63,5.72479384]
[1750743335356,5.12002051,144.67,144.63,5.72479384]
[1750743335553,5.12002051,144.66,144.63,5.72479384]
[1750743335751,36.88,144.69,144.63,5.72479384]
[1750743336055,10.19485372,144.68,144.66,6.9083]
[1750743336257,5.13574416,144.67,144.66,6.9083]
[1750743336552,5.13574416,144.67,144.65,5.72479384]
[1750743336747,36.88,144.69,144.67,6.9076]
[1750743336951,10.17819436,144.68,144.67,6.9076]
[1750743337141,15.82619326,144.68,144.67,6.9076]
[1750743337848,10.17819436,144.68,144.67,12.63239384]
[1750743338048,5.11923086,144.68,144.67,12.63239384]
[1750743338252,3.086e-05,144.68,144.67,12.63239384]
[1750743338556,45.25619969,144.75,144.67,12.64479384]
[1750743338743,10.70675161,144.74,144.7,5.72479384]
[1750743338942,10.70675161,144.73,144.7,5.72479384]
[1750743339142,10.70675161,144.72,144.71,6.9059]
[1750743340354,5.63214535,144.72,144.71,6.9059]
[1750743341458,5.63214535,144.72,144.67,5.72422268]
[1750743341652,15.28029969,144.75,144.64,36.88]
[1750743341653,5.63214535,144.71,144.64,36.88]
[1750743341854,8.37619969,144.75,144.67,6.9075]
[1750743341855,5.63214535,144.7,144.67,6.9075]
[1750743342157,5.63214535,144.69,144.67,6.9075]
[1750743342456,5.63214535,144.68,144.67,6.9078]
[1750743343254,36.88,144.72,144.67,5.72422268]
[1750743343454,5.66203413,144.71,144.67,5.72422268]
[1750743343657,5.66203413,144.7,144.67,5.72422268]
[1750743343859,5.66203413,144.69,144.68,6.9074]
[1750743344358,36.88,144.72,144.67,5.72491932]
[1750743344552,5.66242517,144.71,144.69,6.9065]
[1750743344749,5.66242517,144.7,144.69,6.9065]
[1750743347265,36.88,144.72,144.69,6.9065]
[1750743347453,5.66316243,144.71,144.69,6.9065]
[1750743347653,36.88,144.72,144.69,6.9065]
[1750743347863,5.64980814,144.71,144.69,6.9065]
[1750743348064,36.88,144.72,144.69,6.9065]
[1750743348364,5.64984865,144.71,144.68,6.9072]
[1750743348558,36.88,144.72,144.67,5.72491932]
[1750743348863,5.64989299,144.71,144.67,5.72491932]
[1750743349161,36.88,144.72,144.67,5.72491932]
[1750743349862,36.88,144.72,144.69,6.9069]
[1750743351450,43.7855,144.72,144.68,6.9072]
[1750743352558,43.7855,144.72,144.65,5.72491932]
[1750743352559,36.88,144.72,144.69,6.9069]
[1750743352867,36.88,144.72,144.65,5.72491932]
[1750743353761,36.88,144.72,144.68,6.9071]
[1750743354059,36.88,144.72,144.65,5.72491932]
[1750743354450,36.88,144.72,144.68,6.9069]
[1750743354750,36.88,144.72,144.65,5.72491932]
[1750743355865,36.88,144.72,144.68,6.9071]
[1750743356262,43.7855,144.72,144.68,6.9071]
[1750743356462,36.88,144.72,144.67,6.9077]
[1750743356959,6.9063,144.71,144.67,6.9077]
[1750743357361,4.6966,144.7,144.67,6.9077]
[1750743357563,4.6966,144.7,144.64,5.72752066]
[1750743358766,4.6966,144.7,144.67,6.9075]
[1750743359159,4.6966,144.7,144.66,5.72752066]
[1750743359357,2.3532,144.7,144.66,5.72752066]
[1750743359861,2.3532,144.7,144.62,36.88]
[1750743360063,2.3532,144.7,144.69,6.9069]
[1750743361770,36.88,144.72,144.7,6.9064]
[1750743362471,36.88,144.72,144.71,6.9059]
[1750743362772,39.2646,144.75,144.7,5.72543792]
[1750743363071,5.66012044,144.74,144.7,5.72543792]
[1750743363367,39.2646,144.75,144.7,5.72280088]
[1750743363570,46.1686,144.75,144.71,6.9058]
[1750743363773,5.6629385,144.74,144.71,6.9058]
[1750743363965,39.2646,144.75,144.7,5.72280088]
[1750743364276,5.66314653,144.74,144.7,5.72280088]
[1750743364469,39.2646,144.75,144.7,5.72280088]
[1750743364664,5.66315564,144.74,144.7,5.72280088]
[1750743364867,39.2646,144.75,144.62,12.56402889]
[1750743365066,5.66322493,144.74,144.62,12.56402889]
[1750743365261,39.2646,144.75,144.63,36.88]
[1750743365468,5.6635994,144.74,144.72,6.9051]
[1750743365670,39.2646,144.75,144.72,6.9051]
[1750743365871,5.66370015,144.74,144.72,6.9051]
[1750743366062,39.2646,144.75,144.72,6.9051]
[1750743366268,5.66370015,144.74,144.72,6.9051]
[1750743366467,39.2646,144.75,144.72,6.9051]
[1750743366673,5.66383794,144.74,144.71,6.9058]
[1750743366876,46.1687,144.75,144.71,6.9058]
[1750743367072,5.66383794,144.74,144.71,6.9058]
[1750743367273,46.1687,144.75,144.71,6.9058]
[1750743367477,5.66370727,144.74,144.71,6.9058]
[1750743367667,46.1687,144.75,144.71,6.9058]
[1750743367880,5.66384449,144.74,144.72,6.9054]
[1750743368072,6.9045,144.74,144.67,36.88]
[1750743368267,39.2646,144.75,144.67,42.60280088]
[1750743368471,5.66379373,144.74,144.71,6.9055]
[1750743368674,39.2646,144.75,144.71,6.9055]
[1750743368873,5.66395233,144.74,144.71,6.9055]
[1750743369180,5.66395233,144.73,144.71,6.9055]
[1750743369376,39.2646,144.75,144.71,6.9055]
[1750743369680,12.56835879,144.74,144.71,6.9055]
[1750743369878,5.66385879,144.73,144.71,6.9055]
[1750743370070,6.905,144.73,144.7,6.9062]
[1750743370270,2.3459,144.73,144.7,6.9062]
[1750743370476,2.3459,144.73,144.67,42.60280088]
[1750743370677,2.3459,144.73,144.7,6.9061]
[1750743370977,2.3459,144.73,144.67,42.60280088]
[1750743371180,2.3459,144.73,144.71,6.9055]
[1750743371381,2.3459,144.73,144.67,42.60280088]
[1750743371673,2.3846,144.75,144.71,5.72376666]
[1750743371982,2.2055,144.79,144.73,5.72376666]
[1750743372176,5.67835835,144.78,144.73,5.72376666]
[1750743372382,49.09875362,144.81,144.71,36.88]
[1750743372383,42.66227888,144.81,144.79,6.9018]
[1750743372583,5.67420502,144.8,144.79,6.9018]
[1750743372784,3.59037888,144.81,144.79,3.43159461]
[1750743372976,7.888e-05,144.81,144.8,6.9016]
[1750743373371,7.888e-05,144.81,144.8,10.33319461]
[1750743373581,8.37619969,144.95,144.8,159.64318922]
[1750743373875,4.5873,144.95,144.81,1.0125]
[1750743374086,2.385,144.95,144.9,6.8967]
[1750743374280,2.385,144.95,144.87,5.7092049]
[1750743374479,9.2796,144.95,144.87,5.7092049]
[1750743374677,9.2796,144.95,144.89,6.8969]
[1750743374979,6.8963,144.92,144.83,62.0]
[1750743375180,36.88,144.92,144.83,98.88]
[1750743375483,36.88,144.92,144.83,36.88]
[1750743375689,36.88,144.92,144.83,5.7092049]
[1750743376774,5.7092049,144.91,144.81,5.7092049]
[1750743376980,36.88,144.92,144.78,140.4721]
[1750743376981,5.7092049,144.89,144.78,138.16]
[1750743377276,44.98042829,144.88,144.78,138.16]
[1750743377478,44.98042829,144.88,144.77,5.71582829]
[1750743377479,5.71582829,144.86,144.76,5.71582829]
[1750743377679,5.71582829,144.84,144.76,5.71582829]
[1750743377880,5.71582829,144.82,144.72,5.71582829]
[1750743378083,6.9034,144.77,144.72,6.905]
[1750743378286,43.7634,144.77,144.7,42.57582829]
[1750743378677,6.9036,144.76,144.72,6.9054]
[1750743378884,36.86,144.77,144.68,5.71582829]
[1750743379088,6.9046,144.74,144.69,6.9068]
[1750743379294,36.86,144.73,144.67,36.86]
[1750743379584,6.40019168,144.84,144.83,6.9002]
[1750743379789,2.2201,144.97,144.83,45.88]
[1750743379981,38.98,144.96,144.87,5.72378882]
[1750743380286,44.70378882,144.96,144.8,38.98]
[1750743380494,44.70378882,144.96,144.85,5.72378882]
[1750743380896,6.8956,144.93,144.85,12.62268882]
[1750743381093,6.8956,144.93,144.85,5.72378882]
[1750743381284,44.70378882,144.96,144.85,5.72378882]
[1750743381486,6.8949,144.95,144.88,6.8978]
[1750743381796,6.8949,144.95,144.87,5.72378882]
[1750743382098,6.895,144.94,144.88,6.8978]
[1750743382692,6.8949,144.95,144.86,8.74855285]
[1750743383196,6.8951,144.94,144.88,6.8975]
[1750743383689,8.74855285,144.95,144.87,6.8982]
[1750743383891,8.74855285,144.92,144.8,38.98]
[1750743384099,38.98,144.91,144.79,147.68855285]
[1750743384491,9.311,144.9,144.79,147.68855285]
[1750743384895,2.3783,144.89,144.79,147.68855285]
[1750743385194,41.3583,144.89,144.79,147.68855285]
[1750743386104,2.3976,144.88,144.79,8.74855285]
[1750743386601,2.3976,144.88,144.77,38.98]
[1750743386602,6.8984,144.87,144.82,6.9003]
[1750743386791,2.3976,144.88,144.77,47.72855285]
[1750743387195,9.2955,144.88,144.83,6.8998]
[1750743387399,2.3976,144.88,144.77,47.72855285]
[1750743388497,9.2956,144.88,144.83,6.8998]
[1750743388704,16.63234583,144.88,144.76,8.74855285]
[1750743388904,5.48663209,144.87,144.76,8.74855285]
[1750743389096,6.8989,144.86,144.76,8.74855285]
[1750743389411,38.98,144.85,144.76,8.74855285]
[1750743389805,6.9003,144.83,144.78,6.9023]
[1750743390005,6.9003,144.83,144.76,8.74855285]
[1750743390199,6.9003,144.83,144.74,47.72855285]
[1750743390501,6.9007,144.82,144.77,6.9027]
[1750743390700,38.98,144.81,144.77,6.9027]
[1750743390897,38.98,144.81,144.72,8.74855285]
[1750743391305,38.98,144.81,144.79,6.902]
[1750743392505,38.98,144.81,144.72,8.74855285]
[1750743392895,38.98,144.81,144.78,6.9022]
[1750743394603,6.902,144.8,144.72,8.76242655]
[1750743394802,11.6224,144.8,144.72,8.76242655]
[1750743395001,4.7204,144.8,144.73,6.9049]
[1750743395504,4.7204,144.8,144.74,6.9044]
[1750743396008,6.9025,144.79,144.74,6.9044]
[1750743397414,11.6222,144.8,144.75,6.9037]
[1750743397613,4.7204,144.8,144.75,6.9037]
[1750743397809,4.7204,144.8,144.69,8.76242655]
[1750743398115,6.9025,144.79,144.74,6.9044]
[1750743398616,6.9026,144.78,144.74,6.9044]
[1750743398813,38.98,144.77,144.73,6.9048]
[1750743399716,45.8833,144.77,144.73,6.9048]
[1750743400116,38.98,144.77,144.72,6.9053]
[1750743400506,6.9036,144.76,144.71,6.9058]
[1750743400818,2.3129,144.76,144.66,8.76242655]
[1750743401004,2.3129,144.76,144.69,6.9065]
[1750743401316,2.3129,144.76,144.65,47.74242655]
[1750743401317,11.07532655,144.76,144.65,47.74242655]
[1750743401517,6.9058,144.72,144.67,6.9075]
[1750743401713,38.98,144.71,144.65,8.76242655]
[1750743402416,38.98,144.71,144.67,6.9075]
[1750743402616,45.886,144.71,144.67,6.9075]
[1750743403116,6.9064,144.7,144.66,6.9082]
[1750743403821,45.8861,144.71,144.64,5.72711956]
[1750743404321,39.0,144.74,144.68,5.72610879]
[1750743405017,39.0,144.74,144.66,5.72610879]
[1750743406411,39.0,144.74,144.7,6.9061]
[1750743407021,39.0,144.74,144.7,5.72610879]
[1750743407207,602.10610879,144.79,144.66,39.0]
[1750743407208,635.38,144.79,144.72,5.72610879]
[1750743407510,635.38,144.79,144.74,5.72610879]
[1750743407919,635.38,144.79,144.76,6.9032]
[1750743408122,635.38,144.79,144.74,5.72610879]
[1750743408312,635.38,144.79,144.77,6.9027]
[1750743409616,635.38,144.79,144.74,5.72610879]
[1750743409617,635.38,144.79,144.76,6.9034]
[1750743411312,8.51365457,144.9,144.7,39.0]
[1750743411521,48.51353147,144.9,144.81,5.72610879]
[1750743411726,43.1001,144.9,144.81,5.72610879]
[1750743412112,6.898,144.88,144.82,6.9006]
[1750743413024,11.16912172,144.89,144.78,5.72610879]
[1750743413418,43.1001,144.9,144.8,5.72610879]
[1750743414922,6.8987,144.87,144.8,5.72610879]
[1750743415119,38.46,144.86,144.8,5.72610879]
[1750743416025,38.46,144.86,144.83,6.8999]
[1750743416330,38.46,144.86,144.82,5.72610879]
[1750743416519,4.6401,144.9,144.82,5.72610879]
[1750743416520,38.46,144.89,144.82,5.72610879]
[1750743416715,38.46,144.89,144.84,5.72610879]
[1750743417828,38.44,144.92,144.86,5.72610879]
[1750743418332,45.3363,144.92,144.87,6.8979]
[1750743418525,45.3363,144.92,144.86,5.72610879]
[1750743418526,38.44,144.92,144.81,38.46]
[1750743418726,38.44,144.92,144.83,5.72610879]
[1750743418930,44.16610879,144.92,144.84,6.8996]
[1750743419227,44.16610879,144.92,144.83,5.72610879]
[1750743419630,6.8977,144.89,144.85,6.8992]
[1750743420424,44.16610879,144.92,144.81,44.18610879]
[1750743420626,5.72610879,144.9,144.81,44.18610879]
[1750743420822,40.7658,144.89,144.8,5.72610879]
[1750743421230,4.4649,144.88,144.8,5.72610879]
[1750743421428,4.4649,144.88,144.83,6.9002]
[1750743421730,4.4649,144.88,144.8,5.72610879]
[1750743422931,11.3628,144.88,144.83,6.8999]
[1750743423424,11.3628,144.88,144.8,5.72610879]
[1750743423425,4.4649,144.88,144.8,5.72610879]
[1750743423825,4.4649,144.88,144.79,5.72610879]
[1750743424025,6.8993,144.85,144.81,6.9008]
[1750743424323,38.44,144.85,144.78,5.71607999]
[1750743425235,45.3394,144.85,144.81,6.9009]
[1750743425534,38.44,144.85,144.78,5.71607999]
[1750743425836,45.3394,144.85,144.81,6.901]
[1750743426335,45.3394,144.85,144.78,5.71607999]
[1750743427436,6.8999,144.84,144.8,6.9016]
[1750743427638,38.44,144.85,144.78,5.71607999]
[1750743427937,38.44,144.85,144.79,5.71601356]
[1750743428135,38.44,144.85,144.81,5.71601356]
[1750743428527,38.44,144.85,144.83,6.8999]
[1750743428723,38.44,144.85,144.81,5.71601356]
[1750743428937,42.9049,144.88,144.81,5.71601356]
[1750743429138,42.9049,144.88,144.85,6.8989]
[1750743430139,42.9049,144.88,144.84,6.8997]
[1750743431536,49.8032,144.88,144.84,6.8997]
[1750743431730,42.9049,144.88,144.83,6.9001]
[1750743432036,49.8029,144.88,144.79,38.44]
[1750743432239,42.9049,144.88,144.81,5.71445947]
[1750743433039,42.9049,144.88,144.82,5.71445947]
[1750743433334,42.9049,144.88,144.84,5.71445947]
[1750743433639,38.44,144.91,144.84,5.71445947]
[1750743433836,38.44,144.91,144.88,6.8977]
[1750743434038,38.44,144.91,144.84,5.71445947]
[1750743434738,38.44,144.91,144.82,5.71445947]
[1750743434945,38.44,144.91,144.83,6.8999]
[1750743435141,5.71445947,144.9,144.83,6.8999]
[1750743435643,6.8984,144.87,144.83,6.8999]
[1750743435844,45.3384,144.87,144.83,6.8999]
[1750743436444,45.3384,144.87,144.84,6.8997]
[1750743437644,38.44,144.87,144.85,6.8992]
[1750743438143,38.44,144.87,144.84,6.8996]
[1750743438348,45.3383,144.87,144.84,6.8996]
[1750743438647,38.44,144.87,144.84,6.8996]
[1750743438942,38.44,144.87,144.83,6.9002]
[1750743439641,45.3386,144.87,144.83,6.9002]
[1750743439842,45.3386,144.87,144.84,6.8997]
[1750743444142,38.44,144.87,144.84,6.8997]
[1750743444337,38.0,144.9,144.83,5.71295812]
[1750743445151,38.0,144.9,144.79,38.44]
[1750743445648,6.8981,144.88,144.81,5.71281336]
[1750743445845,38.0,144.9,144.81,5.71403197]
[1750743446046,38.0,144.9,144.86,6.8987]
[1750743447253,6.8977,144.89,144.86,6.8987]
[1750743448245,6.8977,144.89,144.85,6.8989]
[1750743448649,6.8977,144.89,144.81,5.71403197]
[1750743449852,6.8977,144.89,144.85,6.8989]
[1750743450446,6.9091,144.93,144.85,6.8989]
[1750743450447,20.8,144.95,144.85,13.7989]
[1750743450653,5.71403197,145.22,144.94,32.23806394]
[1750743450844,5.71403197,145.23,145.1,5.71403197]
[1750743451049,39.72,145.22,145.12,6.886]
[1750743451346,39.72,145.22,145.07,45.43403197]
[1750743451551,39.72,145.22,145.07,39.72]
[1750743451751,5.71403197,145.18,145.07,45.43403197]
[1750743452052,39.72,145.17,145.07,45.43403197]
[1750743452255,39.72,145.17,145.12,6.8864]
[1750743452748,39.72,145.24,145.19,6.8827]
[1750743452956,39.72,145.24,145.16,5.71403197]
[1750743453150,7.888e-05,145.26,145.17,39.7]
[1750743453450,7.888e-05,145.26,145.15,595.78]
[1750743453751,7.888e-05,145.26,145.19,6.8826]
[1750743453950,7.888e-05,145.26,145.15,5.71403197]
[1750743454548,7.888e-05,145.26,145.21,6.8821]
[1750743455047,41.3,145.25,145.15,5.71403197]
[1750743455341,47.01403197,145.25,145.15,5.71403197]
[1750743455745,6.9096,145.24,145.15,5.71403197]
[1750743455954,6.9096,145.24,145.13,41.3]
[1750743456154,6.9096,145.24,145.14,5.71403197]
[1750743456555,5.71403197,145.23,145.12,5.71403197]
[1750743456751,7.888e-05,145.26,145.18,5.71403197]
[1750743456951,7.888e-05,145.26,145.2,5.71403197]
[1750743457256,7.888e-05,145.26,145.23,6.8808]
[1750743458449,7.888e-05,145.26,145.2,5.71403197]
[1750743458650,41.28,145.25,145.16,5.71403197]
[1750743459355,6.8809,145.24,145.16,5.71403197]
[1750743459559,5.71403197,145.23,145.14,5.71403197]
[1750743459747,5.71403197,145.23,145.11,41.26]
[1750743459748,5.71403197,145.23,145.12,5.71403197]
[1750743460055,6.8818,145.22,145.16,6.8841]
[1750743460256,41.26,145.21,145.16,6.8841]
[1750743460554,41.26,145.21,145.11,49.97764175]
[1750743460752,10.91344175,145.2,145.08,605.59434175]
[1750743460949,10.91344175,145.2,145.08,49.97764175]
[1750743461149,2.1999,145.19,145.08,49.97764175]
[1750743461349,9.083,145.19,145.08,49.97764175]
[1750743461750,2.1999,145.19,145.13,6.8855]
[1750743461957,2.1999,145.19,145.11,8.71764175]
[1750743462256,1.99320302,145.19,145.11,8.71764175]
[1750743462460,1.99320302,145.19,145.12,6.71779672]
[1750743462760,1.99320302,145.19,145.13,6.71779672]
[1750743462950,1.99320302,145.19,145.14,6.71779672]
[1750743463258,1.99320302,145.19,145.11,8.71764175]
[1750743463557,1.99320302,145.19,145.12,6.71510885]
[1750743463755,1.99320302,145.19,145.11,8.71764175]
[1750743463965,43.6285,145.21,145.12,6.71542041]
[1750743464158,43.6285,145.21,145.13,6.71501754]
[1750743464455,43.6285,145.21,145.11,8.71764175]
[1750743464755,43.6285,145.21,145.12,6.71092664]
[1750743464957,43.6285,145.21,145.16,6.8841]
[1750743465157,43.6285,145.21,145.11,8.71764175]
[1750743465356,43.6285,145.21,145.12,6.71066097]
[1750743465654,43.6285,145.21,145.17,6.884]
[1750743465960,43.6285,145.21,145.16,6.8845]
[1750743466660,43.6285,145.21,145.17,6.884]
[1750743466859,43.6285,145.21,145.11,8.71764175]
[1750743467060,43.6285,145.21,145.12,15.42224993]
[1750743467360,43.6285,145.21,145.13,15.41884879]
[1750743467556,43.6285,145.21,145.13,8.71441448]
[1750743468363,43.6285,145.21,145.16,6.8841]
[1750743468661,42.59840247,145.17,145.16,6.8841]
[1750743468856,43.6285,145.21,145.13,8.71441448]
[1750743470353,43.6285,145.21,145.16,6.8842]
[1750743470661,43.6285,145.21,145.13,8.71441448]
[1750743472463,50.5108,145.21,145.14,6.8853]
[1750743472957,50.5108,145.21,145.13,15.60021448]
[1750743473559,6.8828,145.2,145.13,15.60021448]
[1750743473762,43.6285,145.21,145.11,6.8867]
[1750743474162,6.884,145.18,145.11,6.8867]
[1750743474460,43.6285,145.21,145.12,6.72699391]
[1750743474764,6.8844,145.17,145.1,8.71857279]
[1750743474969,43.6285,145.21,145.11,6.72696242]
[1750743475269,43.6285,145.21,145.1,6.8871]
[1750743475461,6.8851,145.15,145.11,6.72805713]
[1750743475661,6.8851,145.15,145.1,6.8871]
[1750743475857,41.24,145.17,145.08,41.24]
[1750743476060,2.3641,145.16,145.09,6.73254828]
[1750743476357,2.3641,145.16,145.1,6.73233502]
[1750743476674,2.3641,145.16,145.08,48.128]
[1750743476965,4.761,145.16,145.07,6.8887]
[1750743477159,6.887,145.11,145.08,6.73450926]
[1750743477357,13.47957279,145.16,145.05,41.24]
[1750743477565,13.47957279,145.16,145.06,6.73961654]
[1750743477758,13.47957279,145.16,145.07,6.73961654]
[1750743477960,13.47957279,145.16,145.04,15.60867279]
[1750743478159,13.47957279,145.16,145.05,6.74143306]
[1750743478370,13.47957279,145.16,145.04,6.8901]
[1750743478567,13.47957279,145.16,145.03,6.8906]
[1750743478863,6.8882,145.09,145.04,6.74278889]
[1750743479070,13.47957279,145.16,145.03,8.71857279]
[1750743479071,41.24,145.1,145.03,8.71857279]
[1750743479273,41.24,145.1,145.04,13.63361953]
[1750743479568,6.8882,145.09,145.04,6.8899]
[1750743480759,41.24,145.1,145.01,5.69689996]
[1750743480959,2.3315,145.09,145.02,6.7444359]
[1750743481161,6.8893,145.06,145.0,6.892]
[1750743481370,48.1293,145.06,145.0,5.69689996]
[1750743481670,41.24,145.06,145.01,6.74608808]
[1750743481870,6.8902,145.05,145.0,6.892]
[1750743482071,6.8902,145.05,145.01,6.74634526]
[1750743482366,6.8902,145.05,144.99,5.69689996]
[1750743482569,48.1294,145.06,145.0,6.74934592]
[1750743482757,41.24,145.06,145.01,6.74934592]
[1750743483071,48.1297,145.06,145.01,6.8913]
[1750743483471,48.1297,145.06,144.96,45.8633]
[1750743483472,41.24,145.06,145.02,6.74830764]
[1750743483769,6.8898,145.05,145.0,6.892]
[1750743483970,6.8898,145.05,145.01,6.75508741]
[1750743484165,6.8898,145.05,145.0,6.892]
[1750743484364,6.8903,145.04,145.01,6.75861143]
[1750743484573,41.24,145.06,145.0,6.892]
[1750743484762,41.24,145.06,145.01,6.75904829]
[1750743484963,41.24,145.06,144.99,12.58939996]
[1750743484964,41.24,145.06,144.99,5.69689996]
[1750743485164,41.24,145.06,145.0,6.7593183]
[1750743485360,41.24,145.06,144.99,5.69689996]
[1750743485561,48.1296,145.06,145.01,6.8913]
[1750743485869,41.24,145.06,144.94,594.98]
[1750743486064,46.93689996,145.06,144.97,5.69689996]
[1750743486266,46.93689996,145.06,144.95,5.69689996]
[1750743486267,5.69689996,145.04,144.95,5.69689996]
[1750743486473,2.2677,145.03,144.96,6.76846043]
[1750743486665,40.0,145.02,144.98,6.8928]
[1750743487266,40.0,145.02,144.99,6.8926]
[1750743487765,40.0,145.02,144.97,5.69689996]
[1750743488071,40.0,145.05,144.99,5.69689996]
[1750743488369,40.0,145.05,145.0,6.7764439]
[1750743488560,40.0,145.05,145.01,6.7764439]
[1750743488761,40.0,145.05,145.02,13.6672439]
[1750743488970,40.0,145.05,144.99,5.69689996]
[1750743489171,40.0,145.05,145.0,6.78280464]
[1750743489371,40.0,145.05,145.01,6.78280464]
[1750743489573,40.0,145.05,144.97,5.69689996]
[1750743489774,6.8905,145.04,144.99,6.8922]
[1750743489971,6.8905,145.04,145.0,6.7889491]
[1750743490372,6.8905,145.04,145.01,6.7889491]
[1750743490578,6.8907,145.03,144.99,6.8926]
[1750743490779,6.8907,145.03,145.0,6.79776744]
[1750743491076,6.8907,145.03,145.01,6.79776744]
[1750743491277,6.8912,145.02,144.98,6.893]
[1750743491478,40.0,145.05,144.99,6.80842245]
[1750743491681,40.0,145.05,145.0,6.80842245]
[1750743491979,6.8911,145.03,145.01,6.80842245]
[1750743492181,6.8911,145.03,144.98,6.893]
[1750743492378,6.8911,145.03,144.99,6.81891591]
[1750743492680,6.8911,145.03,145.0,6.81891591]
[1750743492882,40.0,145.05,145.01,6.81891591]
[1750743493173,40.0,145.05,145.02,13.70971591]
[1750743493378,40.0,145.05,145.03,6.81891591]
[1750743493576,40.0,145.05,145.04,6.81891591]
[1750743495282,42.3344,145.08,145.04,6.86387661]
[1750743495578,42.3344,145.08,144.92,4.5099]
[1750743495579,40.02,145.12,145.05,12.56077657]
[1750743495780,5.53091515,145.11,145.06,6.86387661]
[1750743495967,12.41861515,145.1,145.07,6.86387661]
[1750743496166,6.8877,145.1,145.08,6.86387661]
[1750743496373,6.8877,145.1,145.09,6.86387661]
[1750743496572,5.53103636,145.1,145.09,6.86387661]
[1750743496772,5.53103636,145.11,145.09,6.86387661]
[1750743496983,5.53103636,145.11,145.1,6.86387661]
[1750743497382,603.65032255,145.17,145.1,6.86387661]
[1750743497383,2.2335,145.13,145.1,6.86387661]
[1750743497583,2.2335,145.13,145.11,6.86387661]
[1750743497776,2.2335,145.13,145.12,6.86387661]
[1750743500885,2.2335,145.13,145.02,3.4269]
[1750743500886,12.63651708,145.13,145.05,5.69499511]
[1750743501073,7.81214768,145.12,145.05,5.69499511]
[1750743501280,2.2565,145.12,145.03,5.69499511]
[1750743501586,18.47355981,145.11,145.0,5.69499511]
[1750743501892,5.69499511,145.07,144.98,45.69499511]
[1750743502079,45.55924227,145.06,144.96,5.69499511]
[1750743502393,6.8907,145.03,144.96,5.69499511]
[1750743502683,11.27314131,145.05,144.96,5.69499511]
[1750743502684,10.18579511,145.05,144.96,5.69499511]
[1750743502988,6.8912,145.02,144.98,6.8928]
[1750743503183,4.4908,145.05,144.96,5.69499511]
[1750743503493,4.4908,145.05,144.98,5.69499511]
[1750743503789,4.4908,145.05,145.02,6.8911]
[1750743503986,4.4908,145.05,144.98,5.69499511]
[1750743504486,6.8888,145.07,144.98,5.69499511]
[1750743504676,595.2,145.08,145.02,5.69499511]
[1750743504883,40.02,145.09,145.02,5.69499511]
[1750743505590,2.3717,145.11,145.02,5.69499511]
[1750743505781,40.02,145.09,145.02,5.69499511]
[1750743506694,6.8883,145.08,145.03,6.8907]
[1750743506991,40.02,145.09,145.02,5.69499511]
[1750743507186,40.02,145.09,145.0,45.71499511]
[1750743507387,6.8897,145.06,145.02,6.8911]
[1750743507690,40.02,145.09,145.0,45.71499511]
[1750743508085,40.02,145.09,145.01,6.8915]
[1750743508886,40.02,145.09,145.02,6.8911]
[1750743509091,40.02,145.09,145.0,45.71499511]
[1750743509292,6.8903,145.04,145.0,52.60679511]
[1750743509490,6.8903,145.04,145.0,12.58679511]
[1750743509692,6.8905,145.04,144.98,5.69499511]
[1750743509891,40.02,145.05,144.97,40.02]
[1750743510392,42.2894,145.05,144.96,5.69499511]
[1750743510595,7.90079511,145.04,144.94,45.71499511]
[1750743510793,6.8929,144.99,144.94,45.71499511]
[1750743510994,6.8929,144.99,144.96,6.894]
[1750743511301,6.8923,145.0,144.96,6.894]
[1750743511981,40.02,145.01,144.96,5.69499511]